[Event "Early-Titled-Tuesday-Blitz-May-14-2024"]
[Site "Chess.com"]
[Date "2024.05.14"]
[Round "2"]
[White "maracayo"]
[Black "Evan_Attaker"]
[Result "0-1"]
[WhiteElo "2376"]
[BlackElo "2633"]
[TimeControl "180+1"]
[EndTime "8:18:09 PDT"]
[Termination "Evan_Attaker won by resignation"]

1. e4 {[%clk 0:03:00.9]} 1... d6 {[%clk 0:02:58.8]} 2. Nf3 {[%clk 0:03:00.1]}
2... g6 {[%clk 0:02:57.8]} 3. d3 {[%clk 0:02:59.7]} 3... Bg7 {[%clk 0:02:57.2]}
4. Nbd2 {[%clk 0:03:00.3]} 4... c5 {[%clk 0:02:55.9]} 5. h3 {[%clk 0:03:00.7]}
5... Nc6 {[%clk 0:02:55.2]} 6. c3 {[%clk 0:03:01.2]} 6... e6 {[%clk 0:02:55.1]}
7. Be2 {[%clk 0:03:01.2]} 7... Nge7 {[%clk 0:02:55]} 8. O-O {[%clk 0:03:01.8]}
8... O-O {[%clk 0:02:55.1]} 9. Re1 {[%clk 0:03:02]} 9... b5 {[%clk 0:02:55.1]}
10. Nb3 {[%clk 0:03:01.8]} 10... b4 {[%clk 0:02:53.5]} 11. d4 {[%clk 0:03:01.2]}
11... bxc3 {[%clk 0:02:53.5]} 12. bxc3 {[%clk 0:03:01.9]} 12... cxd4 {[%clk
0:02:52.5]} 13. cxd4 {[%clk 0:03:02.8]} 13... Na5 {[%clk 0:02:44.5]} 14. Be3
{[%clk 0:03:00.4]} 14... Bb7 {[%clk 0:02:38.9]} 15. Nfd2 {[%clk 0:02:55.5]}
15... Nec6 {[%clk 0:02:32.4]} 16. Rb1 {[%clk 0:02:41.9]} 16... Nxb3 {[%clk
0:02:28.1]} 17. Qxb3 {[%clk 0:02:30.6]} 17... Rb8 {[%clk 0:02:23.4]} 18. Qa4
{[%clk 0:02:19.5]} 18... Qa5 {[%clk 0:02:13.2]} 19. Qxa5 {[%clk 0:02:14.1]}
19... Nxa5 {[%clk 0:02:14.1]} 20. d5 {[%clk 0:02:06.5]} 20... exd5 {[%clk
0:02:11.2]} 21. Bxa7 {[%clk 0:02:05.3]} 21... Ra8 {[%clk 0:02:10.4]} 22. Bb6
{[%clk 0:02:04.7]} 22... Bc6 {[%clk 0:01:58.2]} 23. Rec1 {[%clk 0:01:56.4]}
23... Bd7 {[%clk 0:01:35.3]} 24. exd5 {[%clk 0:01:49]} 24... Bf5 {[%clk
0:01:35.2]} 25. Rb5 {[%clk 0:01:45.7]} 25... Nb7 {[%clk 0:01:31.6]} 26. Be3
{[%clk 0:01:18.3]} 26... Nc5 {[%clk 0:01:25.6]} 27. Bc4 {[%clk 0:00:55.5]} 27...
Nd3 {[%clk 0:01:15.1]} 28. Rf1 {[%clk 0:00:50.4]} 28... Ne5 {[%clk 0:01:12.4]}
29. g4 {[%clk 0:00:26]} 29... Nxc4 {[%clk 0:01:05.8]} 30. Nxc4 {[%clk
0:00:26.9]} 30... Bd3 {[%clk 0:01:05.2]} 31. Rc1 {[%clk 0:00:27.2]} 31... Ra4
{[%clk 0:00:46.7]} 32. Nb2 {[%clk 0:00:22.9]} 32... Bxb5 {[%clk 0:00:44.5]} 33.
Nxa4 {[%clk 0:00:23.5]} 33... Bxa4 {[%clk 0:00:45.4]} 34. Rc7 {[%clk 0:00:23.2]}
34... Ra8 {[%clk 0:00:43.5]} 35. Ra7 {[%clk 0:00:21.3]} 35... Rxa7 {[%clk
0:00:43]} 36. Bxa7 {[%clk 0:00:22.2]} 36... Be5 {[%clk 0:00:41.1]} 37. Kg2
{[%clk 0:00:20.4]} 37... Bc2 {[%clk 0:00:36.4]} 38. Kf3 {[%clk 0:00:20.8]} 38...
f5 {[%clk 0:00:35.3]} 39. gxf5 {[%clk 0:00:20.4]} 39... gxf5 {[%clk 0:00:36.2]}
40. Ke3 {[%clk 0:00:20.4]} 40... Be4 {[%clk 0:00:32.8]} 41. f4 {[%clk
0:00:20.7]} 41... Bf6 {[%clk 0:00:31.5]} 42. Bb8 {[%clk 0:00:21.3]} 42... Bxd5
{[%clk 0:00:29.1]} 43. Bxd6 {[%clk 0:00:20.1]} 43... Bxa2 {[%clk 0:00:28.9]} 44.
Bc5 {[%clk 0:00:18.1]} 44... Kf7 {[%clk 0:00:29.1]} 0-1

[Event "Early-Titled-Tuesday-Blitz-May-14-2024"]
[Site "Chess.com"]
[Date "2024.05.14"]
[Round "2"]
[White "CristianS27"]
[Black "Shiner22"]
[Result "1-0"]
[WhiteElo "2529"]
[BlackElo "2290"]
[TimeControl "180+1"]
[EndTime "8:18:10 PDT"]
[Termination "CristianS27 won on time"]

1. e4 {[%clk 0:03:00.9]} 1... c5 {[%clk 0:02:59.2]} 2. Nf3 {[%clk 0:03:00.7]}
2... Nc6 {[%clk 0:02:59.6]} 3. d4 {[%clk 0:03:01.1]} 3... cxd4 {[%clk
0:02:59.4]} 4. Nxd4 {[%clk 0:03:02]} 4... e5 {[%clk 0:02:59.6]} 5. Nb5 {[%clk
0:03:01.5]} 5... a6 {[%clk 0:02:59.4]} 6. Nd6+ {[%clk 0:02:54.1]} 6... Bxd6
{[%clk 0:02:59.3]} 7. Qxd6 {[%clk 0:02:55]} 7... Qf6 {[%clk 0:02:59.2]} 8. Qxf6
{[%clk 0:02:54.7]} 8... Nxf6 {[%clk 0:03:00.1]} 9. Nc3 {[%clk 0:02:55.6]} 9...
Nb4 {[%clk 0:02:59.7]} 10. Bd3 {[%clk 0:02:55.1]} 10... d5 {[%clk 0:03:00.2]}
11. exd5 {[%clk 0:02:55]} 11... Nbxd5 {[%clk 0:02:59.2]} 12. Nxd5 {[%clk
0:02:54.8]} 12... Nxd5 {[%clk 0:03:00.1]} 13. Bd2 {[%clk 0:02:55.7]} 13... Be6
{[%clk 0:02:59.2]} 14. O-O-O {[%clk 0:02:55.5]} 14... O-O-O {[%clk 0:02:38.3]}
15. Rhe1 {[%clk 0:02:53.6]} 15... f6 {[%clk 0:02:30.4]} 16. h3 {[%clk
0:02:53.6]} 16... Rhe8 {[%clk 0:02:24.4]} 17. Bxh7 {[%clk 0:02:49.8]} 17... b6
{[%clk 0:01:38.1]} 18. b3 {[%clk 0:02:32.5]} 18... b5 {[%clk 0:01:29.5]} 19. Ba5
{[%clk 0:02:26]} 19... Rd7 {[%clk 0:01:22.9]} 20. Bg6 {[%clk 0:02:26.1]} 20...
Ree7 {[%clk 0:01:19.1]} 21. Kb2 {[%clk 0:01:49.9]} 21... Nf4 {[%clk 0:01:17.1]}
22. Be4 {[%clk 0:01:47.6]} 22... Rxd1 {[%clk 0:00:43.1]} 23. Rxd1 {[%clk
0:01:48.5]} 23... Rd7 {[%clk 0:00:42.9]} 24. Rxd7 {[%clk 0:01:42.7]} 24... Bxd7
{[%clk 0:00:42.5]} 25. Bd2 {[%clk 0:01:37.7]} 25... f5 {[%clk 0:00:40.1]} 26.
Bxf4 {[%clk 0:01:32.5]} 26... fxe4 {[%clk 0:00:39.4]} 27. Bxe5 {[%clk
0:01:31.2]} 27... g6 {[%clk 0:00:38.8]} 28. Kc3 {[%clk 0:01:26.3]} 28... Bc6
{[%clk 0:00:36.8]} 29. g3 {[%clk 0:01:22.6]} 29... Kd7 {[%clk 0:00:30.5]} 30.
Kd4 {[%clk 0:01:22.6]} 30... Ke6 {[%clk 0:00:30.2]} 31. Bf4 {[%clk 0:01:20.9]}
31... Kf5 {[%clk 0:00:21.3]} 32. Kc5 {[%clk 0:01:20.4]} 32... Bd7 {[%clk
0:00:18.8]} 33. Kb6 {[%clk 0:01:19.1]} 33... Bc8 {[%clk 0:00:16.3]} 34. Kc7
{[%clk 0:01:19.3]} 34... Be6 {[%clk 0:00:15.3]} 35. Kb6 {[%clk 0:01:15.6]} 35...
Bc8 {[%clk 0:00:14.6]} 36. c4 {[%clk 0:01:12.9]} 36... bxc4 {[%clk 0:00:14.3]}
37. bxc4 {[%clk 0:01:13.8]} 37... g5 {[%clk 0:00:14.2]} 38. Be3 {[%clk
0:01:13.6]} 38... Be6 {[%clk 0:00:12.3]} 39. c5 {[%clk 0:01:06.8]} 39... Bxa2
{[%clk 0:00:11.9]} 40. c6 {[%clk 0:01:07.2]} 40... Be6 {[%clk 0:00:11.6]} 41.
Kxa6 {[%clk 0:00:58.1]} 41... Ke5 {[%clk 0:00:11.5]} 42. Kb7 {[%clk 0:00:56.7]}
42... Bxh3 {[%clk 0:00:10.4]} 43. Bxg5 {[%clk 0:00:51.5]} 43... Kd6 {[%clk
0:00:05.1]} 44. c7 {[%clk 0:00:49.7]} 1-0

[Event "Early-Titled-Tuesday-Blitz-May-14-2024"]
[Site "Chess.com"]
[Date "2024.05.14"]
[Round "2"]
[White "Franmu14"]
[Black "kleinebeer98"]
[Result "1-0"]
[WhiteElo "2667"]
[BlackElo "2975"]
[TimeControl "180+1"]
[EndTime "8:18:14 PDT"]
[Termination "Franmu14 won by resignation"]

1. e4 {[%clk 0:03:00.9]} 1... e5 {[%clk 0:02:59.6]} 2. Nf3 {[%clk 0:02:59.9]}
2... Nc6 {[%clk 0:03:00.1]} 3. Nc3 {[%clk 0:02:59.1]} 3... Nf6 {[%clk
0:02:59.9]} 4. Bb5 {[%clk 0:02:58.8]} 4... Bd6 {[%clk 0:02:59.7]} 5. Bxc6 {[%clk
0:02:57.3]} 5... dxc6 {[%clk 0:03:00.6]} 6. d3 {[%clk 0:02:57.1]} 6... h6 {[%clk
0:03:00.6]} 7. h3 {[%clk 0:02:56.9]} 7... Be6 {[%clk 0:03:00.4]} 8. Be3 {[%clk
0:02:57.5]} 8... Qd7 {[%clk 0:02:58.5]} 9. Ne2 {[%clk 0:02:55.6]} 9... c5 {[%clk
0:02:56.4]} 10. Qd2 {[%clk 0:02:52.6]} 10... O-O-O {[%clk 0:02:56.1]} 11. b3
{[%clk 0:02:51]} 11... b6 {[%clk 0:02:52.6]} 12. Qc3 {[%clk 0:02:49.8]} 12...
Rhe8 {[%clk 0:02:48.1]} 13. Nxe5 {[%clk 0:02:43.9]} 13... Bxe5 {[%clk
0:02:46.6]} 14. Qxe5 {[%clk 0:02:44.8]} 14... Bxb3 {[%clk 0:02:47.1]} 15. Qc3
{[%clk 0:02:42.8]} 15... Ba4 {[%clk 0:02:44.8]} 16. O-O {[%clk 0:02:34]} 16...
Qc6 {[%clk 0:02:40.3]} 17. Ng3 {[%clk 0:02:14.4]} 17... c4 {[%clk 0:02:22.4]}
18. Rfc1 {[%clk 0:01:35.9]} 18... Bb5 {[%clk 0:02:07]} 19. a4 {[%clk 0:01:29.5]}
19... Ba6 {[%clk 0:02:07.1]} 20. a5 {[%clk 0:01:26.6]} 20... Kb7 {[%clk
0:02:02.7]} 21. axb6 {[%clk 0:01:24.6]} 21... axb6 {[%clk 0:02:03.6]} 22. Nf5
{[%clk 0:01:15.9]} 22... g6 {[%clk 0:01:59.5]} 23. Nd4 {[%clk 0:01:07.4]} 23...
Rxd4 {[%clk 0:01:51.4]} 24. Bxd4 {[%clk 0:01:06.3]} 24... Nh5 {[%clk 0:01:48.6]}
25. Be3 {[%clk 0:00:59.4]} 25... Bb5 {[%clk 0:01:43.1]} 26. Qa3 {[%clk
0:00:53.5]} 26... Rb8 {[%clk 0:01:39.2]} 27. f3 {[%clk 0:00:47.6]} 27... f5
{[%clk 0:01:37.6]} 28. Rcb1 {[%clk 0:00:26]} 28... Nf6 {[%clk 0:01:35.2]} 29.
Qb4 {[%clk 0:00:20.6]} 29... Ba6 {[%clk 0:01:34.6]} 30. Ra3 {[%clk 0:00:20]}
30... g5 {[%clk 0:01:23.9]} 31. Rba1 {[%clk 0:00:20]} 31... Ra8 {[%clk
0:01:24.6]} 32. Qc3 {[%clk 0:00:19.9]} 32... g4 {[%clk 0:01:22.7]} 33. hxg4
{[%clk 0:00:20.1]} 33... fxg4 {[%clk 0:01:22.9]} 34. f4 {[%clk 0:00:20.4]} 34...
g3 {[%clk 0:01:21.1]} 35. Qb2 {[%clk 0:00:17.1]} 35... Ng4 {[%clk 0:01:19.7]}
36. Bd4 {[%clk 0:00:17.1]} 36... Qe8 {[%clk 0:01:12.7]} 37. Kf1 {[%clk
0:00:14.7]} 37... cxd3 {[%clk 0:01:12.1]} 38. cxd3 {[%clk 0:00:14.6]} 38... Qxe4
{[%clk 0:01:11.1]} 39. Kg1 {[%clk 0:00:12.3]} 39... Qxf4 {[%clk 0:01:10.1]} 40.
Ra4 {[%clk 0:00:10]} 40... Nf2 {[%clk 0:01:06.8]} 41. Bxf2 {[%clk 0:00:09.2]}
41... gxf2+ {[%clk 0:01:07.5]} 42. Qxf2 {[%clk 0:00:09]} 42... Qd6 {[%clk
0:00:59.7]} 43. Qf3+ {[%clk 0:00:08.9]} 43... c6 {[%clk 0:01:00.4]} 44. Qf7+
{[%clk 0:00:08.7]} 44... Kb8 {[%clk 0:00:59.1]} 45. Rxa6 {[%clk 0:00:08.9]}
45... Qd4+ {[%clk 0:00:57.9]} 46. Qf2 {[%clk 0:00:08.8]} 46... Qxa1+ {[%clk
0:00:55]} 47. Rxa1 {[%clk 0:00:09.7]} 47... Rxa1+ {[%clk 0:00:54.7]} 48. Kh2
{[%clk 0:00:10.4]} 48... Rb1 {[%clk 0:00:49.7]} 49. Qf8+ {[%clk 0:00:10.4]}
49... Kb7 {[%clk 0:00:49.6]} 50. Qxh6 {[%clk 0:00:11]} 50... b5 {[%clk
0:00:49.4]} 51. Qg7+ {[%clk 0:00:11.6]} 51... Ka6 {[%clk 0:00:48]} 52. Qd7
{[%clk 0:00:11.7]} 52... Kb6 {[%clk 0:00:47.8]} 53. Qd4+ {[%clk 0:00:11.8]}
53... Kb7 {[%clk 0:00:48.5]} 54. g4 {[%clk 0:00:11.2]} 54... b4 {[%clk
0:00:48.8]} 55. g5 {[%clk 0:00:11.2]} 55... b3 {[%clk 0:00:49.5]} 56. g6 {[%clk
0:00:10.9]} 56... b2 {[%clk 0:00:49.2]} 57. g7 {[%clk 0:00:11.3]} 57... Rh1+
{[%clk 0:00:49.1]} 58. Kxh1 {[%clk 0:00:11.8]} 58... b1=Q+ {[%clk 0:00:50]} 59.
Kg2 {[%clk 0:00:12.4]} 59... Qb2+ {[%clk 0:00:49.4]} 60. Qxb2+ {[%clk
0:00:12.1]} 1-0

[Event "Early-Titled-Tuesday-Blitz-May-14-2024"]
[Site "Chess.com"]
[Date "2024.05.14"]
[Round "2"]
[White "patzer-reloaded"]
[Black "FREDERICKtheMATE"]
[Result "0-1"]
[WhiteElo "2391"]
[BlackElo "2683"]
[TimeControl "180+1"]
[EndTime "8:18:14 PDT"]
[Termination "FREDERICKtheMATE won on time"]

1. d3 {[%clk 0:03:00.9]} 1... Nf6 {[%clk 0:02:58.4]} 2. Nf3 {[%clk 0:03:00.7]}
2... d5 {[%clk 0:02:57.6]} 3. g3 {[%clk 0:03:01.3]} 3... g6 {[%clk 0:02:57.1]}
4. Bg2 {[%clk 0:03:02]} 4... Bg7 {[%clk 0:02:57.8]} 5. O-O {[%clk 0:03:02.4]}
5... O-O {[%clk 0:02:58.4]} 6. c4 {[%clk 0:03:03]} 6... c6 {[%clk 0:02:58.4]} 7.
cxd5 {[%clk 0:03:02.9]} 7... cxd5 {[%clk 0:02:59.3]} 8. Nc3 {[%clk 0:03:03.2]}
8... Nc6 {[%clk 0:02:59.6]} 9. Bf4 {[%clk 0:03:03.8]} 9... Re8 {[%clk
0:02:57.8]} 10. Ne5 {[%clk 0:03:03.7]} 10... Nh5 {[%clk 0:02:50.8]} 11. Nxc6
{[%clk 0:03:02.4]} 11... bxc6 {[%clk 0:02:50.4]} 12. Bd2 {[%clk 0:03:02.7]}
12... e5 {[%clk 0:02:50.1]} 13. Rc1 {[%clk 0:03:01.7]} 13... Qb6 {[%clk
0:02:47.2]} 14. Na4 {[%clk 0:03:00.7]} 14... Qb5 {[%clk 0:02:46.6]} 15. Rc5
{[%clk 0:02:51.6]} 15... Qb7 {[%clk 0:02:45.9]} 16. Qc1 {[%clk 0:02:44.7]} 16...
Bd7 {[%clk 0:02:45.7]} 17. Rc2 {[%clk 0:02:43.5]} 17... Qb5 {[%clk 0:02:37.8]}
18. Nc5 {[%clk 0:02:35.8]} 18... Bc8 {[%clk 0:02:37.7]} 19. Nb3 {[%clk
0:02:15.1]} 19... Bd7 {[%clk 0:02:35.4]} 20. Na5 {[%clk 0:01:55.6]} 20... Rac8
{[%clk 0:02:29.4]} 21. b4 {[%clk 0:01:54.6]} 21... Bf8 {[%clk 0:02:27.2]} 22.
Nb3 {[%clk 0:00:45]} 22... Bxb4 {[%clk 0:02:04.6]} 23. Bxb4 {[%clk 0:00:45.9]}
23... Qxb4 {[%clk 0:02:04.9]} 24. Nc5 {[%clk 0:00:46.8]} 24... Rcd8 {[%clk
0:02:02.2]} 25. Nxd7 {[%clk 0:00:43.9]} 25... Rxd7 {[%clk 0:02:02.2]} 26. Rxc6
{[%clk 0:00:44.4]} 26... Ng7 {[%clk 0:01:48.6]} 27. Qc5 {[%clk 0:00:42.7]} 27...
Qd2 {[%clk 0:01:42.3]} 28. Bxd5 {[%clk 0:00:35.6]} 28... Qxe2 {[%clk 0:01:42.1]}
29. Bc4 {[%clk 0:00:34.8]} 29... Qf3 {[%clk 0:01:36.1]} 30. Rc8 {[%clk
0:00:23.3]} 30... Rdd8 {[%clk 0:01:16.6]} 31. Rxd8 {[%clk 0:00:21.8]} 31... Rxd8
{[%clk 0:01:17.5]} 32. Qxe5 {[%clk 0:00:21.8]} 32... h5 {[%clk 0:01:15.8]} 33.
Qe3 {[%clk 0:00:20.4]} 33... Qb7 {[%clk 0:01:13.2]} 34. Qg5 {[%clk 0:00:14.2]}
34... Re8 {[%clk 0:01:11.8]} 35. h4 {[%clk 0:00:12.7]} 35... Kh7 {[%clk
0:01:06.7]} 36. Qf6 {[%clk 0:00:09.9]} 36... Ne6 {[%clk 0:01:04.1]} 37. Bxe6
{[%clk 0:00:08.8]} 37... Rxe6 {[%clk 0:01:03.6]} 38. Qc3 {[%clk 0:00:09.7]}
38... Qf3 {[%clk 0:01:00.9]} 39. Re1 {[%clk 0:00:08.2]} 39... Rxe1+ {[%clk
0:00:59.3]} 40. Qxe1 {[%clk 0:00:09.1]} 40... Qxd3 {[%clk 0:00:59.7]} 41. Qe3
{[%clk 0:00:08.1]} 41... Qb1+ {[%clk 0:00:59.6]} 42. Kh2 {[%clk 0:00:08.4]}
42... Qxa2 {[%clk 0:01:00.5]} 43. Qe7 {[%clk 0:00:06.5]} 43... Qxf2+ {[%clk
0:00:58.9]} 44. Kh3 {[%clk 0:00:06.7]} 44... Qf5+ {[%clk 0:00:56.8]} 45. Kh2
{[%clk 0:00:06.3]} 45... a5 {[%clk 0:00:52.4]} 46. Qa7 {[%clk 0:00:06.3]} 46...
Qd5 {[%clk 0:00:50.8]} 47. Kg1 {[%clk 0:00:05.8]} 47... Kg7 {[%clk 0:00:51]} 48.
Kh2 {[%clk 0:00:05.7]} 48... Qd2+ {[%clk 0:00:49.3]} 49. Kg1 {[%clk 0:00:05.7]}
49... Qb4 {[%clk 0:00:50.2]} 50. Kh2 {[%clk 0:00:05.2]} 50... a4 {[%clk
0:00:50.7]} 51. Qe7 {[%clk 0:00:01.6]} 51... Qxe7 {[%clk 0:00:48.7]} 0-1

[Event "Early-Titled-Tuesday-Blitz-May-14-2024"]
[Site "Chess.com"]
[Date "2024.05.14"]
[Round "2"]
[White "francyIM"]
[Black "Kazmin_Semyon"]
[Result "1-0"]
[WhiteElo "2875"]
[BlackElo "2599"]
[TimeControl "180+1"]
[EndTime "8:18:15 PDT"]
[Termination "francyIM won by resignation"]

1. e4 {[%clk 0:02:59.3]} 1... e6 {[%clk 0:02:59.8]} 2. d4 {[%clk 0:02:59.5]}
2... d5 {[%clk 0:02:59.8]} 3. Nc3 {[%clk 0:02:59.5]} 3... Bb4 {[%clk 0:03:00.5]}
4. e5 {[%clk 0:02:59.4]} 4... c5 {[%clk 0:03:00.8]} 5. a3 {[%clk 0:02:59.6]}
5... Bxc3+ {[%clk 0:03:01.3]} 6. bxc3 {[%clk 0:03:00.5]} 6... Qa5 {[%clk
0:03:01.9]} 7. Bd2 {[%clk 0:02:57.3]} 7... Qa4 {[%clk 0:03:02.5]} 8. h4 {[%clk
0:02:56.5]} 8... Ne7 {[%clk 0:02:58.7]} 9. h5 {[%clk 0:02:55.6]} 9... h6 {[%clk
0:02:59.1]} 10. Nf3 {[%clk 0:02:54.2]} 10... b6 {[%clk 0:02:58]} 11. Rh4 {[%clk
0:02:49.9]} 11... c4 {[%clk 0:02:53.9]} 12. Rg4 {[%clk 0:02:45.6]} 12... Nf5
{[%clk 0:02:52]} 13. Nh4 {[%clk 0:02:45.7]} 13... Nxh4 {[%clk 0:02:40.1]} 14.
Rxh4 {[%clk 0:02:46.6]} 14... Nc6 {[%clk 0:02:38.8]} 15. Rg4 {[%clk 0:02:42.6]}
15... Rh7 {[%clk 0:02:39.3]} 16. Ra2 {[%clk 0:02:40.2]} 16... Ne7 {[%clk
0:02:34]} 17. Qb1 {[%clk 0:02:27.3]} 17... Nc6 {[%clk 0:02:28.2]} 18. Be2 {[%clk
0:02:16.4]} 18... Bd7 {[%clk 0:02:27.9]} 19. Kf1 {[%clk 0:02:16.6]} 19... O-O-O
{[%clk 0:02:26.5]} 20. Rg3 {[%clk 0:02:17.1]} 20... Rg8 {[%clk 0:02:23.4]} 21.
Kg1 {[%clk 0:02:16.4]} 21... g5 {[%clk 0:02:18.6]} 22. f4 {[%clk 0:02:12.2]}
22... Ne7 {[%clk 0:02:13.3]} 23. fxg5 {[%clk 0:02:10.7]} 23... Nf5 {[%clk
0:02:09.2]} 24. Rg4 {[%clk 0:02:03.7]} 24... Rhg7 {[%clk 0:02:06]} 25. gxh6
{[%clk 0:01:56.6]} 25... Rxg4 {[%clk 0:01:52.8]} 26. Bxg4 {[%clk 0:01:57.5]}
26... Nxh6 {[%clk 0:01:52.7]} 27. Bh3 {[%clk 0:01:32]} 27... Nf5 {[%clk
0:01:45.7]} 28. h6 {[%clk 0:01:30.9]} 28... Rh8 {[%clk 0:01:34.5]} 29. Qc1
{[%clk 0:01:23.2]} 29... Ng3 {[%clk 0:01:27.3]} 30. Kh2 {[%clk 0:01:12]} 30...
Ne4 {[%clk 0:01:26]} 31. Be1 {[%clk 0:01:06.6]} 31... Qb5 {[%clk 0:01:20.7]} 32.
a4 {[%clk 0:01:05.4]} 32... Qc6 {[%clk 0:01:14.6]} 33. a5 {[%clk 0:01:04.3]}
33... b5 {[%clk 0:01:11.6]} 34. a6 {[%clk 0:01:04.7]} 34... f6 {[%clk
0:01:00.6]} 35. Qf4 {[%clk 0:00:59.2]} 35... fxe5 {[%clk 0:00:40.4]} 36. Qxe5
{[%clk 0:00:57.5]} 36... Rxh6 {[%clk 0:00:38.7]} 37. Qg7 {[%clk 0:00:55.1]}
37... Rf6 {[%clk 0:00:31.3]} 38. Bh4 {[%clk 0:00:54.9]} 38... Qd6+ {[%clk
0:00:26.4]} 39. Kg1 {[%clk 0:00:54.2]} 39... Rf4 {[%clk 0:00:09.6]} 40. Be7
{[%clk 0:00:41.6]} 40... Rf1+ {[%clk 0:00:08.4]} 41. Kxf1 {[%clk 0:00:36]} 41...
Qf4+ {[%clk 0:00:09.3]} 42. Kg1 {[%clk 0:00:36.4]} 42... Qc1+ {[%clk 0:00:07.1]}
43. Kh2 {[%clk 0:00:36.5]} 43... Qf4+ {[%clk 0:00:08]} 44. g3 {[%clk 0:00:36.6]}
44... Qf2+ {[%clk 0:00:05.9]} 45. Bg2 {[%clk 0:00:36.9]} 45... Nd2 {[%clk
0:00:04.8]} 46. Qf8+ {[%clk 0:00:37]} 46... Kc7 {[%clk 0:00:05.4]} 47. Qxf2
{[%clk 0:00:36.8]} 1-0

[Event "Early-Titled-Tuesday-Blitz-May-14-2024"]
[Site "Chess.com"]
[Date "2024.05.14"]
[Round "2"]
[White "Dewarfd"]
[Black "LangesNasenhaar"]
[Result "0-1"]
[WhiteElo "2053"]
[BlackElo "2461"]
[TimeControl "180+1"]
[EndTime "8:18:18 PDT"]
[Termination "LangesNasenhaar won on time"]

1. d4 {[%clk 0:03:00.9]} 1... g6 {[%clk 0:02:59.4]} 2. e3 {[%clk 0:03:00.5]}
2... Bg7 {[%clk 0:02:59.7]} 3. Nf3 {[%clk 0:03:01.1]} 3... b6 {[%clk 0:02:57.3]}
4. Be2 {[%clk 0:03:01.4]} 4... c5 {[%clk 0:02:57.6]} 5. O-O {[%clk 0:02:59.3]}
5... Bb7 {[%clk 0:02:57.7]} 6. c4 {[%clk 0:02:56.3]} 6... e6 {[%clk 0:02:53.6]}
7. Nbd2 {[%clk 0:02:45.2]} 7... d6 {[%clk 0:02:46.6]} 8. a3 {[%clk 0:02:40.2]}
8... Nf6 {[%clk 0:02:45]} 9. b4 {[%clk 0:02:38.6]} 9... cxd4 {[%clk 0:02:40.1]}
10. Nxd4 {[%clk 0:02:32.3]} 10... O-O {[%clk 0:02:40.7]} 11. Bb2 {[%clk
0:02:31.5]} 11... Nc6 {[%clk 0:02:39]} 12. Nxc6 {[%clk 0:02:26.3]} 12... Bxc6
{[%clk 0:02:38.9]} 13. Bf3 {[%clk 0:02:26.3]} 13... Qc7 {[%clk 0:02:32.8]} 14.
Bxc6 {[%clk 0:02:25.1]} 14... Qxc6 {[%clk 0:02:32.6]} 15. Qf3 {[%clk 0:02:24.9]}
15... Rac8 {[%clk 0:02:21.5]} 16. Rac1 {[%clk 0:02:08.8]} 16... Rfd8 {[%clk
0:02:04.1]} 17. Rfd1 {[%clk 0:02:07.1]} 17... Qxf3 {[%clk 0:01:56.9]} 18. Nxf3
{[%clk 0:01:56.9]} 18... Kf8 {[%clk 0:01:45.8]} 19. h3 {[%clk 0:01:53.9]} 19...
Ke7 {[%clk 0:01:32.4]} 20. g4 {[%clk 0:01:32.4]} 20... h6 {[%clk 0:01:15.8]} 21.
Kg2 {[%clk 0:01:17.1]} 21... g5 {[%clk 0:01:12]} 22. Bd4 {[%clk 0:00:48.7]}
22... Rd7 {[%clk 0:01:01.1]} 23. Nd2 {[%clk 0:00:41.6]} 23... Rdc7 {[%clk
0:00:55.9]} 24. f4 {[%clk 0:00:26]} 24... gxf4 {[%clk 0:00:51.4]} 25. exf4
{[%clk 0:00:25.4]} 25... d5 {[%clk 0:00:35]} 26. c5 {[%clk 0:00:20]} 26... Nxg4
{[%clk 0:00:28]} 27. hxg4 {[%clk 0:00:13.7]} 27... Bxd4 {[%clk 0:00:27]} 28. Nf3
{[%clk 0:00:10.2]} 28... bxc5 {[%clk 0:00:26.1]} 29. bxc5 {[%clk 0:00:08.2]}
29... Bxc5 {[%clk 0:00:25.3]} 30. f5 {[%clk 0:00:06.3]} 30... Bxa3 {[%clk
0:00:22.5]} 31. Rxc7+ {[%clk 0:00:07.2]} 31... Rxc7 {[%clk 0:00:22.6]} 32. fxe6
{[%clk 0:00:07]} 32... fxe6 {[%clk 0:00:23]} 33. Ra1 {[%clk 0:00:06.5]} 33...
Bc5 {[%clk 0:00:22.7]} 34. Ne5 {[%clk 0:00:05.9]} 34... Bb6 {[%clk 0:00:21.4]}
35. Ng6+ {[%clk 0:00:05.1]} 35... Kf6 {[%clk 0:00:21.1]} 36. Nf4 {[%clk
0:00:05]} 36... Rc2+ {[%clk 0:00:18.5]} 37. Kg3 {[%clk 0:00:03.4]} 37... Rc3+
{[%clk 0:00:18.3]} 38. Kg2 {[%clk 0:00:03]} 38... Rc4 {[%clk 0:00:16]} 39. Rf1
{[%clk 0:00:02.8]} 39... Ke7 {[%clk 0:00:14.1]} 40. Ng6+ {[%clk 0:00:02.6]}
40... Kd6 {[%clk 0:00:14.2]} 41. Rf7 {[%clk 0:00:01.8]} 41... Rxg4+ {[%clk
0:00:14.1]} 0-1